Cogmind - Beta 9.2 @@@ ROGUE MODE // 2019.11.29 @ 13:06:49 Player: Cipherpunk Result: Destroyed by Y-45 Defender with Heavy Assault Rifle Performance ------------- Evolutions (2) 1000 Regions Visited (3) 600 Robots Destroyed (16) 80 Value Destroyed (313) 313 Prototype IDs (0) 0 Alien Tech Used (0) 0 Bonus (0) 0 TOTAL SCORE: 1993 Bonus ------- None Cogmind --------- Core Integrity 0/550 Matter 300/300 Energy 99/100 System Corruption 0% Temperature Cool (18) Movement Rolling (110) Ox2 Location -8/Materials Parts ------- > --- POWER (1) -------- (None) > --- PROPULSION (4) --- Armored Wheel > --- UTILITY (4) ------ Large Storage Unit Large Storage Unit Transport Network Coupler System Shield > --- WEAPON (2) ------- (None) > --- INVENTORY (16) --- Ion Engine Large Storage Unit Advanced Visual Processing Unit Advanced Sensor Array Advanced Sensor Array Advanced Signal Interpreter Improved Terrain Scanner Seismic Analyzer Propulsion Shielding Hardened Light Armor Plating Hardlight Generator Beam Rifle Heavy Assault Rifle Autogun Katana Peak State ------------ > --- POWER ------------ Improved Ion Engine > --- PROPULSION ------- Wheel Wheel Compact Wheel Compact Wheel > --- UTILITY ---------- Large Storage Unit Large Storage Unit System Shield System Shield > --- WEAPON ----------- Katana Katana > --- INVENTORY -------- Ion Engine Armored Wheel Large Storage Unit Advanced Visual Processing Unit Advanced Sensor Array Advanced Sensor Array Improved Terrain Scanner Seismic Analyzer Transport Network Coupler Propulsion Shielding Hardened Light Armor Plating Hardlight Generator Beam Rifle Heavy Assault Rifle Autogun Katana [Rating: 23] Favorites ----------- Power Light Ion Engine Engine Light Ion Engine Propulsion Wheel Wheel Wheel Utility Large Storage Unit Storage Large Storage Unit Processor Transport Network Coupler Hackware System Shield Weapon Katana Energy Gun EM Pulse Gun Ballistic Gun Assault Rifle Slashing Weapon Katana Build | -11 -10 -9 -8 ------- Run | Scr Mat Mat Mat Slots Evolved 4 | . . 2 2 Power . | . . . . Propulsion 2 | . . 2 . Utility 2 | . . . 2 Weapon . | . . . . Parts Attached 22 | 9 2 7 4 Power 4 | 2 . 2 . Engine 4 | 2 . 2 . Core . | . . . . Reactor . | . . . . Propulsion 6 | 2 . 3 1 Treads . | . . . . Leg . | . . . . Wheel 6 | 2 . 3 1 Hover . | . . . . Flight . | . . . . Utility 7 | 2 2 . 3 Device . | . . . . Storage 4 | 2 2 . . Processor 1 | . . . 1 Hackware 2 | . . . 2 Protection . | . . . . Artifact . | . . . . Weapon 5 | 3 . 2 . Energy Gun 1 | 1 . . . Energy Cannon . | . . . . Ballistic Gun 2 | 2 . . . Ballistic Cannon . | . . . . Launcher . | . . . . Special Weapon . | . . . . Impact Weapon . | . . . . Slashing Weapon 2 | . . 2 . Piercing Weapon . | . . . . Special Melee Weapon . | . . . . Unidentified Prototypes . | . . . . Parts Lost 9 | . 1 . 8 Power 1 | . . . 1 Propulsion 5 | . 1 . 4 Utility 1 | . . . 1 Weapon 2 | . . . 2 Highest Loss Streak 4 | . 1 . 4 Average Slot Usage (%) 93 | . 97 99 86 Engine 9 | . 14 11 7 Wheel 32 | . 25 43 26 Storage 21 | . 28 22 18 Processor 1 | . . . 2 Hackware 5 | . . . 13 Energy Gun 3 | . 14 1 . Ballistic Gun 3 | . 14 1 . Slashing Weapon 14 | . . 20 17 Naked Turns . | . . . . Heaviest Build 43 | 17 39 43 43 Greatest Support 52 | 26 26 52 52 Greatest Overweight (x) 4 | 4 2 . 4 Average Overweight (x) . | . . . . Largest Inventory Capacity 16 | 8 16 16 16 Average Capacity 13 | 6 11 16 16 Most Carried 16 | 8 10 16 16 Average Carried 11 | 5 8 14 15 Final Capacity 16 | 8 16 16 16 Final Carried 16 | 7 10 16 15 Class Distribution -------------------- 47% | Mutant 32% | Scavenger-Mutant 20% | Hacker-Mutant Dominant Class ---------------- Mutant | -10/Materials Scavenger-Mutant | -9/Materials Hacker-Mutant | -8/Materials Resources | -11 -10 -9 -8 ----------- Run | Scr Mat Mat Mat Matter Collected 425 | 330 . 75 20 Remotely . | . . . . Salvage Created 665 | 152 60 242 211 Parts 41 | 10 2 21 8 Haulers Intercepted 3 | . 1 2 . Recyclers Shooed . | . . . . Parts Field Recycled . | . . . . Retrieved Matter . | . . . . Parts Self-Destructed . | . . . . Prevented . | . . . . Kills | -11 -10 -9 -8 ------- Run | Scr Mat Mat Mat Combat Hostiles Destroyed 9 | . . 5 4 Melee 9 | . . 5 4 Classes Destroyed 8 | 3 1 3 1 Worker 1 | 1 . . . Tunneler 2 | 2 . . . Hauler 3 | . 1 2 . Recycler 1 | 1 . . . Swarmer 3 | . . 3 . Grunt 4 | . . 1 3 Brawler 1 | . . . 1 Sentry 1 | . . 1 . Best Kill Streak 5 | 2 1 5 2 Combat Bots Only 4 | . . 4 2 Max Kills in Single Turn 1 | 1 1 1 1 Gunslinging . | . . . . Exploded . | . . . . Melee 1 | . . 1 1 Uniques/NPCs Destroyed . | . . . . Combat | -11 -10 -9 -8 -------- Run | Scr Mat Mat Mat Damage Taken 1389 | 1 125 131 1132 Core 601 | 1 . 37 563 Absorbed by Shields . | . . . . Core Remaining (%) 96 | 99 99 90 . Volleys Fired 20 | 12 8 . . Largest 2 | 2 1 . . Hottest 40 | 40 40 . . Shots Fired 27 | 19 8 . . Gun 27 | 19 8 . . Cannon . | . . . . Launcher . | . . . . Special . | . . . . Kinetic 14 | 14 . . . Thermal . | . . . . Explosive . | . . . . Electromagnetic 13 | 5 8 . . Robot Hit Streak 14 | 6 14 . . Robot Miss Streak 2 | 2 . . . Penetration Max . | . . . . Secondary Targets . | . . . . Shots Hit Robots 51 | 14 8 16 13 Core Hits 17 | 4 1 7 5 Critical Hits . | . . . . Critical Kills . | . . . . Critical Parts Destroyed . | . . . . Melee Attacks 59 | . . 22 37 Impact . | . . . . Slashing 59 | . . 22 37 Piercing . | . . . . Sneak Attacks 2 | . . 2 . Combat Hostiles . | . . . . Follow-up Attacks 5 | . . 4 1 Damage Inflicted 1388 | 185 127 663 413 Guns 286 | 182 104 . . Cannons . | . . . . Explosions 23 | . 23 . . Melee 1076 | . . 663 413 Ramming 3 | 3 . . . Kinetic 117 | 117 . . . Thermal 23 | . 23 . . Explosive . | . . . . Electromagnetic 169 | 65 104 . . Impact . | . . . . Slashing 1076 | . . 663 413 Piercing . | . . . . Highest Corruption . | . . . . Average Corruption . | . . . . Corruption Purged . | . . . . Overload Shots . | . . . . Overflow Damage 41 | . . 23 18 Projectiles . | . . . . Explosions . | . . . . Melee 41 | . . 23 18 Knockbacks . | . . . . Impact . | . . . . Kinetic . | . . . . Secondary . | . . . . Self-Inflicted Damage 9 | 1 8 . . Shots 1 | . 1 . . Rammed 1 | 1 . . . Targets Rammed 1 | 1 . . . Kicked . | . . . . Crushed . | . . . . Highest Temperature 20 | 20 12 . 13 Average Temperature 13 | 20 12 . 8 Received Heat Transfer 585 | . 12 15 558 Siege Activations . | . . . . Robots Corrupted . | . . . . Combat Hostiles . | . . . . Parts Fried 2 | . 2 . . Impact Corruptions . | . . . . Robots Melted . | . . . . Combat Hostiles . | . . . . Parts Melted . | . . . . Heat Transferred 50 | . 50 . . Parts Sabotaged . | . . . . Parts Stolen . | . . . . Parts Stripped . | . . . . Power Chain Reactions 1 | . 1 . . Missiles Intercepted . | . . . . Alert | -11 -10 -9 -8 ------- Run | Scr Mat Mat Mat Peak Influence 184 | 20 35 184 168 Average Influence 58 | 6 24 65 101 Maximum Alert Level . | . . . . Low Security (%) 100 | 100 100 100 100 Level 1 . | . . . . Level 2 . | . . . . Level 3 . | . . . . Level 4 . | . . . . Level 5 . | . . . . High Security . | . . . . Max Security . | . . . . Squads Dispatched 2 | . . 1 1 Investigation . | . . . . Extermination . | . . . . Reinforcement 2 | . . 1 1 Assault . | . . . . Garrison . | . . . . Intercept . | . . . . Construction Impeded . | . . . . Haulers Reinforced . | . . . . Stealth | -11 -10 -9 -8 --------- Run | Scr Mat Mat Mat Distress Signals 5 | . 2 1 2 Communications Jammed . | . . . . Distress Signals . | . . . . Times Spotted 37 | . 5 8 24 Peak Tracking Total 13 | . 3 5 13 Tactical Retreats 5 | . 1 1 3 Traps | -11 -10 -9 -8 ------- Run | Scr Mat Mat Mat Traps Triggered . | . . . . Indirectly . | . . . . Trap Hack Attempts . | . . . . Triggered . | . . . . Disarmed . | . . . . Reprogrammed . | . . . . Reused . | . . . . Traps Extracted . | . . . . Installed . | . . . . Triggered . | . . . . Machines | -11 -10 -9 -8 ---------- Run | Scr Mat Mat Mat Machines Disabled . | . . . . Max in Single Turn . | . . . . Machines Sabotaged . | . . . . Garrisons Compromised . | . . . . Overloaded Fab Kills . | . . . . Fab Network Shutdowns . | . . . . Hacking | -11 -10 -9 -8 --------- Run | Scr Mat Mat Mat Machines Accessed 1 | . . . 1 Terminals . | . . . . Fabricators . | . . . . Repair Stations . | . . . . Recycling Units . | . . . . Scanalyzers 1 | . . . 1 Garrison Access . | . . . . Total Hacks 20 | . . . 20 Successful 20 | . . . 20 Failed . | . . . . Catastrophic . | . . . . Database Lockouts . | . . . . Manual . | . . . . Terminals . | . . . . Fabricators . | . . . . Repair Stations . | . . . . Recycling Units . | . . . . Scanalyzers 20 | . . . 20 Garrison Access . | . . . . Terminal Hacks . | . . . . Fabricator Hacks . | . . . . Repair Station Hacks . | . . . . Recycling Unit Hacks . | . . . . Scanalyzer 20 | . . . 20 Insert Component 9 | . . . 9 Analyze 11 | . . . 11 Garrison Access Hacks . | . . . . Unauthorized Hacks . | . . . . Terminals . | . . . . Fabricators . | . . . . Repair Stations . | . . . . Recycling Units . | . . . . Scanalyzers . | . . . . Garrison Access . | . . . . Data Cores Recovered . | . . . . Used . | . . . . Hacking Detections 1 | . . . 1 Full Trace Events . | . . . . Feedback Events . | . . . . Feedback Blocked . | . . . . Robot Schematics Acquired . | . . . . Robots Built . | . . . . Matter . | . . . . Time . | . . . . Total Robot Build Rating . | . . . . Part Schematics Acquired 8 | . . . 8 Parts Built . | . . . . Matter . | . . . . Time . | . . . . Total Part Build Rating . | . . . . Parts Repaired . | . . . . Time . | . . . . Parts Recycled . | . . . . Recycled Matter . | . . . . Retrieved Matter . | . . . . Retrieved Components . | . . . . Parts Scanalyzed 9 | . . . 9 Part Schematics Acquired 8 | . . . 8 Parts Damaged . | . . . . Bothacking | -11 -10 -9 -8 ------------ Run | Scr Mat Mat Mat Used RIF Installer . | . . . . Robots Hacked . | . . . . Non-combat . | . . . . Combat . | . . . . Robot Hacks Applied . | . . . . Relay Couplers Released . | . . . . Robots Rewired . | . . . . Allies Hacked . | . . . . Hacks Repelled . | . . . . Allies | -11 -10 -9 -8 -------- Run | Scr Mat Mat Mat Total Allies . | . . . . Largest Group . | . . . . Highest-Rated Group . | . . . . Highest-Rated Ally . | . . . . Total Orders . | . . . . Ally Attacks . | . . . . Total Damage . | . . . . Kills . | . . . . Allies Corrupted . | . . . . Allies Melted . | . . . . Intel | -11 -10 -9 -8 ------- Run | Scr Mat Mat Mat Robot Analysis Total . | . . . . Derelict Logs Recovered . | . . . . Drone Launches . | . . . . Drone Recoveries . | . . . . Exploration | -11 -10 -9 -8 ------------- Run | Scr Mat Mat Mat Turns Passed 721 | 158 109 214 240 Spaces Moved 498 | 96 91 161 150 Core 16 | 16 . . . Treads . | . . . . Legs . | . . . . Wheels 482 | 80 91 161 150 Hover . | . . . . Flight . | . . . . Fastest Speed 50 | 50 90 90 90 Average Speed 95 | 98 99 90 96 Slowest Speed 250 | 250 120 90 120 Overloaded Moves . | . . . . Propulsion Burnouts . | . . . . Robots Hopped . | . . . . Cave-ins Triggered . | . . . . Exploration Rate (%) 17 | 6 23 20 20 Regions Visited 3 Branch Regions . Pre-discovered Areas . | . . . . Known Exits Taken . | . . . . Unknown Exits Taken 3 | 1 1 1 . Scrap Searched . | . . . . Spaces Dug 16 | . . . 16 Terrain Destroyed 21 | . 5 . 16 Melee 16 | . . . 16 Projectile . | . . . . AOE 5 | . 5 . . Actions | -11 -10 -9 -8 --------- Run | Scr Mat Mat Mat Total 650 | 141 101 209 199 Wait 6 | . . 1 5 Move 495 | 95 90 160 150 Hop . | . . . . Pick Up 37 | 16 1 14 6 Fast Attach 7 | 5 . 2 . Attach 10 | 3 . 3 4 Detach 3 | 1 . 2 . Swap 5 | 1 2 2 . Drop 19 | 7 . 9 3 Fire 20 | 12 8 . . Melee 47 | . . 16 31 Ram 1 | 1 . . . Kick . | . . . . Crush . | . . . . Escape Stasis . | . . . . Rewire . | . . . . Trap . | . . . . Miscellaneous . | . . . . Route ------- -11/Scrapyard -10/Materials -9/Materials -8/Materials History --------- Turn | Location | Event 26 | -11/Scrapyard | Discovered new exit (range 15) 159 | -11/Scrapyard | Entered Materials 255 | -10/Materials | Discovered new exit (range 11) 268 | -10/Materials | Entered another Materials area 268 | -9/Materials | Evolved 2 slots: Propulsion x2 461 | -9/Materials | Discovered new exit (range 9) 482 | -9/Materials | Entered another Materials area 482 | -8/Materials | Evolved 2 slots: Utility x2 674 | -8/Materials | Lost 4 parts (3n1u) 712 | -8/Materials | Core integrity fell below 50% 718 | -8/Materials | Core integrity fell below 20% 722 | -8/Materials | Destroyed by Y-45 Defender with Heavy Assault Rifle Last Messages --------------- 00660_ K-01 Serf collects debris. 00662_ Acquired Adv. Signal Interpreter. 00664_ K-01 Serf collects debris. 00674_ K-01 Serf cleans the Terminal. 00676_ K-01 Serf collects debris. 00677_ Imp. Ion Engine destroyed. 00680_ K-01 Serf cleans the Electrolysis Chamber. 00681_ U-05 Engineer builds a Wall. 00683_ B-36 Bruiser destroyed. 00683_ K-01 Serf collects debris. 00690_ K-01 Serf cleans the Electrolysis Chamber. 00694_ K-01 Serf collects debris. 00696_ U-05 Engineer builds a Wall. 00700_ W-25 Informer sends out distress signal. 00707_ U-05 Engineer builds a Wall. 00708_ T-07 Excavator destroyed. 00713_ Wheel destroyed. 00715_ Katana destroyed. 00720_ K-01 Serf collects debris. 00720_ U-05 Engineer lays Concrete. Map ----- +----------------------------------------------------+ | ??????????????????????????????????????# # " | | ??????????????????????????????????????# + | | ???????????????????????????a??????????# # " | | ??????????????????????????????????????# # " | | ??????????????????????????????????????#### ## " | | ?????????????????????###########?????????# ## | | ??????????????????? +?????????# ####### | | ??????????????????? #?????????# #???# # | | ???????????????????? a #?????????# #???# # | | ???????????????????? #?????????# #???# # | | ????????????????????? +?????????# #???# # | | ??????????????????????? #?????????# ####### | | ???????????????????????? #?????????# | | ?????????????????????????# gbY#?????????# ## | | ?????????????????????????# g #???????### #? | | ?????????????????????????# #???????# ## | | ?????????????????????????# ######### | | ?????????????????????????# u |%= | | ?????????????????????????# guu ! | | ?????????????????????????# g k | | ?????????????????????????# g ###########+###### | | ?????????????????????????#a Y #????## ### # | | ?????a???????????????????# ########### """ # | | ????????????????????????## g ## # """ # | | ????????????????????????# g # "" # """ !# | | ????????????????????#####@ # G" # """ !# | | ??????????????????? # * "" # # | | ??????????????????? T + /% ######## | | ??????????????????? #""" #????##" | | ??????????????????###+### t #""" #?????## | | ????????????????????????# #""" #??????# | | ????????????????????????### ### [=! #??????# | | ??????????????????????????# ############??????# | | ??????????????????????????# # """%= !#???????# | | ??????????????????????????# + "T" #???????# | | ??????????????????????????# # !% #???????# | | ??????????????????????????# w # =%= ! !#???????# | | ??????????????????????????? ###########???????#/ | | ???????????????????????????#+##?????????????????? | | ????????????????????????????? ??????????????????? | | ?????????????????????????????????????????????????" | | ?????????????????????????????????????????????????" | | ?????????????????????????????????????????????????? | | ?????????????????????????????????????????????????? | | ?????????????????????????????????????????????????? | | ?????????????????????????????????????????????????? | | ?????????????????????????????????????????????????? | | ?????????????????????????????????????????????????? | | ?????????????????????????????????????????????????? | | ?????????????????????????????????????????????????? | +----------------------------------------------------+ Best States ------------- Heat Dissipation 31 Energy Generation 12 Energy Capacity 265 Matter Stores 300 Matter Capacity 300 Sight Range 16 Terrain Scan Density 10 Evasion (%) 42 Defensive Hacking 20 Item Schematics ----------------- Transport Network Coupler | -8/Materials | Scanalyzed Arm. Wheel | -8/Materials | Scanalyzed Katana | -8/Materials | Scanalyzed Adv. Sensor Array | -8/Materials | Scanalyzed Seismic Analyzer | -8/Materials | Scanalyzed Propulsion Shielding | -8/Materials | Scanalyzed Imp. Terrain Scanner | -8/Materials | Scanalyzed Lrg. Storage Unit | -8/Materials | Scanalyzed Robot Schematics ------------------ None Fabricated ------------ Nothing Alien Tech Used ----------------- None Achievements -------------- None Challenges ------------ None Game ------ Seed SkeletonSuspensionSteel Manual? 0 Play Time 00:17:51 Cumulative 25.7 hours Start 2019.11.29 @ 12:45:58 End 2019.11.29 @ 13:06:49 Sessions 1 Manual Loads 0 Difficulty Rogue Special Mode None Game No. 25 Rogue 25 Adventurer 0 Explorer 0 Win Type - Total 0 Types 0/0/0/0/0/0/0 Lore% 16 Gallery% 32 Achievement% 19 Wizard Run 0 Options --------- ASCII 0 Keyboard 1 Movement Numpad Keybinds 0 Fullscreen 2 Font 18/SmallcapsGlow Map View 76x50 Tactical HUD 1 Map Filters NONE Filters NONE Steam 1 RUN: 1e2b64b8-a2e1-4da9-9c91-20d7e9eb0de2